bitfinex-derivatives/quotes_SOLF0:USTF0_20241103
["timestamp","ask_amount","ask_price","bid_price","bid_amount"]
[1730665335984,7.63485703,160.88,160.82,7.63485703]
[1730665337389,3.1093,160.87,160.84,3.1097]
[1730665338783,3.1098,160.84,160.8,3.1103]
[1730665339693,3.1098,160.84,160.81,3.1102]
[1730665348203,7.63485703,160.86,160.8,7.63485703]
[1730665348497,3.1095,160.86,160.82,3.11]
[1730665350806,3.1097,160.85,160.82,3.11]
[1730665351304,3.1097,160.85,160.76,7.63485703]
[1730665351305,7.63485703,160.83,160.76,7.63485703]
[1730665351600,7.63485703,160.79,160.73,7.63485703]
[1730665351993,7.63485703,160.79,160.74,3.1116]
[1730665351994,3.111,160.78,160.74,3.1116]
[1730665356102,3.1107,160.79,160.76,3.1112]
[1730665356306,7.63485703,160.81,160.74,7.63485703]
[1730665356902,3.1106,160.8,160.76,3.1111]
[1730665360509,3.1117,160.74,160.71,7.63485703]
[1730665360708,10.75485703,160.78,160.7,7.63485703]
[1730665360914,1.3125,160.77,160.7,7.63485703]
[1730665361899,3.1115,160.75,160.71,3.1121]
[1730665364515,3.1115,160.75,160.72,3.112]
[1730665366416,3.1113,160.76,160.72,3.112]
[1730665368819,1.3125,160.77,160.65,3.12]
[1730665369019,2.6423,160.77,160.71,7.63485703]
[1730665369522,5.7535,160.77,160.73,3.1117]
[1730665369920,2.6423,160.77,160.73,3.1117]
[1730665371227,5.7535,160.77,160.73,3.1117]
[1730665373322,1.3125,160.77,160.71,7.63485703]
[1730665373521,3.12,160.8,160.74,7.63485703]
[1730665373717,7.63485703,160.77,160.63,6.24694749]
[1730665373918,2.6232,160.76,160.69,7.63485703]
[1730665374123,3.1117,160.74,160.7,3.1123]
[1730665374831,3.1117,160.74,160.71,3.1122]
[1730665375028,3.1115,160.75,160.71,3.1122]
[1730665375417,2.6232,160.76,160.7,3.1124]
[1730665375731,3.1118,160.73,160.7,3.1124]
[1730665381324,2.6232,160.76,160.7,7.63485703]
[1730665381832,2.6232,160.76,160.57,2.88239453]
[1730665381833,3.1125,160.7,160.66,3.1131]
[1730665382030,3.12,160.71,160.66,3.1131]
[1730665382628,7.63485703,160.7,160.64,7.63485703]
[1730665382834,9.05345703,160.7,160.63,7.63485703]
[1730665383133,3.1143,160.61,160.56,10.74985703]
[1730665383436,10.75485703,160.62,160.56,10.74985703]
[1730665383933,3.1143,160.61,160.56,10.74985703]
[1730665384626,3.1143,160.61,160.56,7.63485703]
[1730665384831,10.75485703,160.62,160.57,3.1149]
[1730665385138,10.74885703,160.62,160.57,3.1149]
[1730665385334,4.4194439,160.7,160.6,3.1142]
[1730665385335,7.63485703,160.67,160.6,3.1142]
[1730665385533,3.12,160.66,160.59,7.63485703]
[1730665386227,6.2332,160.66,160.61,3.114]
[1730665388339,3.1134,160.65,160.61,3.114]
[1730665389539,3.12,160.66,160.62,3.1138]
[1730665389846,21.311,160.69,160.62,3.1138]
[1730665390027,3.12,160.67,160.62,3.1138]
[1730665390536,3.1134,160.65,160.62,3.1138]
[1730665391134,3.1134,160.65,160.58,11.96698506]
[1730665391350,3.1134,160.65,160.61,3.1141]
[1730665394343,3.1134,160.65,160.58,11.96698506]
[1730665394344,21.311,160.69,160.59,3.08541572]
[1730665394540,3.12,160.67,160.63,3.1137]
[1730665394837,21.311,160.69,160.63,3.1137]
[1730665395033,3.12,160.68,160.63,3.1137]
[1730665395344,3.1132,160.67,160.63,3.1137]
[1730665395938,6.2329,160.68,160.64,3.1135]
[1730665396131,3.12,160.68,160.6,11.96698506]
[1730665397038,3.12,160.68,160.65,3.1133]
[1730665397235,4.4542,160.7,160.62,11.96698506]
[1730665398235,4.4542,160.7,160.67,3.1129]
[1730665398845,3.12,160.7,160.67,3.1129]
[1730665399740,60.967556,160.71,160.67,3.1129]
[1730665399941,11.96698506,160.74,160.62,11.96698506]
[1730665400151,15.08698506,160.74,160.63,4.4466]
[1730665401033,3.1122,160.72,160.68,3.1127]
[1730665401636,3.1119,160.73,160.63,4.4466]
[1730665401843,3.1119,160.73,160.65,11.96698506]
[1730665402841,3.1119,160.73,160.69,3.1125]
[1730665403155,3.112,160.72,160.69,3.1125]
[1730665403847,15.08698506,160.74,160.65,11.96698506]
[1730665404152,3.112,160.73,160.65,11.96698506]
[1730665405249,3.112,160.73,160.69,3.1125]
[1730665405941,3.12,160.74,160.65,11.96698506]
[1730665407234,3.1122,160.72,160.69,3.1126]
[1730665408847,7.65276709,160.73,160.67,7.65276709]
[1730665410350,10.76466709,160.73,160.69,3.1125]
[1730665412653,10.76466709,160.73,160.7,3.1123]
[1730665419258,6.2318,160.74,160.7,3.1123]
[1730665419763,3.12,160.74,160.7,3.1123]
[1730665421369,3.1119,160.73,160.7,3.1123]
[1730665425167,3.1117,160.74,160.7,3.1124]
[1730665425351,3.1117,160.74,160.68,7.65276709]
[1730665426154,3.1118,160.73,160.7,3.1123]
[1730665434588,3.1118,160.74,160.7,3.1123]
[1730665434887,10.77276709,160.75,160.68,7.65276709]
[1730665435182,3.1119,160.73,160.68,7.65276709]
[1730665436182,3.1119,160.73,160.7,3.1123]
[1730665439177,1.3501,160.76,160.68,7.65276709]
[1730665439382,7.5703,160.77,160.74,3.1116]
[1730665439685,6.2312,160.77,160.72,7.65276709]
[1730665439882,6.2312,160.77,160.73,3.1117]
[1730665441291,6.2312,160.77,160.72,7.65276709]
[1730665441591,3.12,160.77,160.74,3.1115]
[1730665442292,6.2311,160.77,160.74,3.1115]
[1730665443302,3.1111,160.77,160.74,3.1115]
[1730665445288,12.06316709,160.78,160.72,7.65276709]
[1730665445491,7.65276709,160.73,160.67,7.65276709]
[1730665445886,10.76476709,160.73,160.7,3.1124]
[1730665446087,7.65276709,160.73,160.67,7.65276709]
[1730665447300,3.1121,160.72,160.69,3.1126]
[1730665447791,7.65276709,160.73,160.67,7.65276709]
[1730665448888,3.1122,160.72,160.68,3.1127]
[1730665449589,3.1127,160.69,160.66,7.65276709]
[1730665449793,3.1127,160.69,160.65,3.1133]
[1730665452601,3.1131,160.67,160.64,10.76626709]
[1730665452802,3.12,160.7,160.64,7.65276709]
[1730665453191,3.1127,160.69,160.65,3.1133]
[1730665453901,3.1127,160.69,160.66,3.1132]
[1730665457494,3.1129,160.68,160.65,3.1134]
[1730665457696,7.65276709,160.66,160.59,7.65276709]
[1730665457996,7.65276709,160.65,160.59,7.65276709]
[1730665458714,3.1139,160.63,160.59,10.76726709]
[1730665458900,3.1139,160.63,160.59,7.65276709]
[1730665459097,7.65276709,160.65,160.57,7.65276709]
[1730665460302,3.1138,160.63,160.59,3.1144]
[1730665465105,7.65276709,160.65,160.59,7.65276709]
[1730665465404,3.1135,160.65,160.61,3.114]
[1730665466204,3.1136,160.64,160.61,3.114]
[1730665470406,3.1135,160.65,160.61,3.114]
[1730665470708,10.77276709,160.66,160.6,7.65276709]
[1730665470909,3.1131,160.67,160.63,3.1137]
[1730665471807,71.7471255,160.68,160.6,7.65276709]
[1730665472002,74.8600255,160.68,160.66,3.1132]
[1730665472203,74.8600255,160.68,160.62,7.65276709]
[1730665472802,74.8600255,160.68,160.64,3.1135]
[1730665474311,71.7400255,160.68,160.64,3.1135]
[1730665474611,74.8600255,160.68,160.64,3.1135]
[1730665474809,3.1132,160.67,160.64,3.1135]
[1730665477108,3.1132,160.67,160.63,3.1137]
[1730665494730,3.1132,160.67,160.64,3.1136]
[1730665499019,3.1137,160.64,160.6,3.1142]
[1730665499324,3.1137,160.64,160.59,7.65276709]
[1730665499823,7.65276709,160.65,160.6,3.1143]
[1730665500128,7.65276709,160.63,160.58,7.65276709]
[1730665500536,3.114,160.62,160.59,3.1146]
[1730665502024,10.76656709,160.63,160.59,3.1146]
[1730665502927,3.1132,160.66,160.63,3.1137]
[1730665503230,9.06976709,160.67,160.62,7.65276709]
[1730665503231,4.517,160.67,160.62,7.65276709]
[1730665504032,7.6302,160.67,160.63,3.1136]
[1730665504425,4.5302,160.67,160.63,3.1136]
[1730665504629,7.6302,160.67,160.63,3.1136]
[1730665505427,4.5302,160.67,160.63,3.1136]
[1730665505627,7.6302,160.67,160.63,3.1136]
[1730665506237,3.1132,160.66,160.63,3.1136]
[1730665508046,3.1132,160.66,160.61,7.65276709]
[1730665508225,3.1132,160.66,160.64,3.1136]
[1730665508537,60.97435841,160.68,160.64,7.65276709]
[1730665508927,60.97435841,160.68,160.65,3.1133]
[1730665509126,64.08715841,160.68,160.65,3.1133]
[1730665510033,60.97435841,160.68,160.66,3.113]
[1730665510335,60.97435841,160.68,160.64,7.65276709]
[1730665510723,60.97435841,160.68,160.65,3.1133]
[1730665511633,60.97435841,160.68,160.66,3.1132]
[1730665511846,3.1128,160.69,160.66,3.1132]
[1730665524072,3.1,160.71,160.64,7.65276709]
[1730665524372,3.1132,160.66,160.63,10.76646709]
[1730665524569,7.65276709,160.68,160.63,7.65276709]
[1730665525369,3.1131,160.67,160.64,3.1136]
[1730665525962,7.65276709,160.68,160.63,7.65276709]
[1730665526166,7.65276709,160.7,160.63,7.65276709]
[1730665526360,7.65276709,160.7,160.65,7.65276709]
[1730665526674,3.1128,160.69,160.65,10.76606709]
[1730665528357,3.1128,160.69,160.66,3.1132]
[1730665530670,7.65276709,160.67,160.61,7.65276709]
[1730665530873,3.1,160.66,160.61,7.65276709]
[1730665531073,6.2134,160.66,160.62,3.1139]
[1730665531374,3.1,160.66,160.62,3.1139]
[1730665531970,3.1136,160.65,160.62,3.1139]
[1730665533073,3.1136,160.64,160.61,3.1141]
[1730665534474,6.2134,160.66,160.62,7.65276709]
[1730665534777,3.1,160.66,160.62,7.65276709]
[1730665535576,3.1134,160.66,160.62,10.76666709]
[1730665537674,3.1,160.7,160.64,7.65276709]
[1730665537976,3.1,160.71,160.66,7.65276709]
[1730665538579,3.1126,160.7,160.67,3.1128]
[1730665538766,7.65276709,160.75,160.69,7.65276709]
[1730665538973,10.75276709,160.75,160.71,7.65276709]
[1730665539279,3.1118,160.74,160.71,7.65276709]
[1730665539672,10.75276709,160.75,160.71,7.65276709]
[1730665539878,3.1117,160.74,160.71,7.65276709]
[1730665542185,6.2115,160.75,160.72,7.65276709]
[1730665542593,3.1,160.75,160.71,3.1121]
[1730665543087,3.1,160.75,160.7,7.65276709]
[1730665543280,3.1118,160.74,160.7,10.76516709]
[1730665543785,60.94225079,160.78,160.76,3.1112]
[1730665544078,18.68,160.92,160.73,7.65276709]
[1730665544079,7.65276709,160.84,160.77,7.65276709]
[1730665544271,7.65276709,160.84,160.8,10.76316709]
[1730665544272,3.1098,160.84,160.8,10.76316709]
[1730665544468,3.1098,160.84,160.81,7.65276709]
[1730665544881,3.1098,160.84,160.81,10.76306709]
[1730665545287,60.9051007,160.87,160.83,7.65276709]
[1730665545486,60.9051007,160.87,160.86,7.65276709]
[1730665545892,3.1086,160.9,160.86,7.65276709]
[1730665546092,3.1086,160.9,160.87,7.65276709]
[1730665549484,3.1091,160.87,160.86,7.65276709]
[1730665549783,7.65276709,160.9,160.83,9.00936709]
[1730665550279,7.65276709,160.9,160.85,7.65276709]
[1730665551388,3.109,160.88,160.85,7.65276709]
[1730665556301,10.75276709,160.93,160.86,7.65276709]
[1730665556702,3.1087,160.9,160.86,10.76196709]
[1730665558300,3.1091,160.87,160.85,7.65276709]
[1730665558503,7.65276709,160.91,160.85,7.65276709]
[1730665558696,7.65276709,160.91,160.86,7.65276709]
[1730665558890,3.1088,160.89,160.86,7.65276709]
[1730665559593,7.65276709,160.92,160.86,7.65276709]
[1730665559795,3.109,160.88,160.86,7.65276709]
[1730665560992,3.1089,160.89,160.86,7.65276709]
[1730665562291,3.1086,160.9,160.87,10.76176709]
[1730665562494,60.88472455,160.92,160.89,7.65276709]
[1730665562701,60.88472455,160.92,160.91,7.65276709]
[1730665563803,3.1079,160.94,160.91,10.76116709]
[1730665563997,3.1079,160.94,160.92,7.65276709]
[1730665565301,3.1079,160.94,160.91,3.1084]
[1730665565302,7.65276709,160.97,160.91,7.65276709]
[1730665565506,3.108,160.93,160.91,7.65276709]
[1730665566609,7.65276709,160.97,160.91,7.65276709]
[1730665566807,3.108,160.93,160.91,7.65276709]
[1730665569899,3.1082,160.92,160.91,7.65276709]
[1730665571607,7.65276709,160.93,160.88,7.65276709]
[1730665571817,7.65276709,160.93,160.84,2.7564]
[1730665571818,7.65276709,160.93,160.86,7.65276709]
[1730665572200,3.1091,160.88,160.86,7.65276709]
[1730665573120,3.1091,160.88,160.85,7.65276709]
[1730665574414,3.1091,160.88,160.85,10.76226709]
[1730665576012,3.1091,160.88,160.87,7.65276709]
[1730665576411,3.1087,160.9,160.87,7.65276709]
[1730665576713,3.1087,160.9,160.88,7.65276709]
[1730665579532,7.65276709,160.92,160.86,7.65276709]
[1730665580015,3.1085,160.91,160.86,7.65276709]
[1730665580209,7.65276709,160.92,160.86,7.65276709]
[1730665580513,3.1091,160.87,160.86,7.65276709]
[1730665580709,7.65276709,160.9,160.85,7.65276709]
[1730665581918,3.1093,160.87,160.85,7.65276709]
[1730665582915,7.65276709,160.91,160.86,7.65276709]
[1730665583319,3.1093,160.86,160.85,7.65276709]
[1730665583721,7.65276709,160.91,160.85,7.65276709]
[1730665585114,3.1091,160.88,160.85,7.65276709]
[1730665587215,3.1091,160.87,160.85,7.65276709]
[1730665587922,1.2805,160.93,160.86,7.65276709]
[1730665588118,1.2805,160.93,160.89,7.65276709]
[1730665588318,3.1085,160.91,160.89,7.65276709]
[1730665589319,1.3996,160.95,160.9,7.65276709]
[1730665589522,3.1079,160.94,160.91,3.1083]
[1730665589727,3.1,160.96,160.92,7.65276709]
[1730665590924,3.1079,160.94,160.92,7.65276709]
[1730665591627,3.1,160.96,160.93,7.65276709]
[1730665591826,1.3819,160.99,160.93,7.65276709]
[1730665592052,4.4819,160.99,160.95,7.65276709]
[1730665593431,3.1074,160.97,160.95,7.65276709]
[1730665594625,4.4619,160.99,160.95,7.65276709]
[1730665594923,4.4619,160.99,160.86,1.3822]
[1730665594924,18.67,160.98,160.92,7.65276709]
[1730665595130,7.65276709,160.96,160.9,7.65276709]
[1730665595437,3.1082,160.92,160.9,7.65276709]
[1730665595823,7.65276709,160.96,160.9,7.65276709]
[1730665596333,3.108,160.93,160.9,10.76126709]
[1730665597036,4.4619,160.99,160.91,7.65276709]
[1730665597225,4.4619,160.99,160.94,7.65276709]
[1730665598334,3.1075,160.96,160.94,7.65276709]
[1730665599426,3.1075,160.96,160.93,3.1078]
[1730665600328,3.1072,160.97,160.92,15.04065563]
[1730665600547,4.4619,160.99,160.92,15.04065563]
[1730665601039,3.1075,160.96,160.92,15.04065563]
[1730665603628,3.1075,160.96,160.93,3.1079]
[1730665606225,65.25572102,161.0,160.92,11.93255563]
[1730665606424,65.25572102,161.0,160.91,3.1082]
[1730665606627,1.4212,160.99,160.91,3.1082]
[1730665607733,3.1077,160.95,160.91,3.1082]
[1730665608932,1.4212,160.99,160.86,2.736]
[1730665609132,3.1084,160.91,160.88,3.1089]
[1730665609826,3.08,160.96,160.87,11.93255563]
[1730665610135,3.1083,160.92,160.89,3.1087]
[1730665611929,3.08,160.96,160.9,11.93255563]
[1730665612730,3.1079,160.94,160.91,3.1083]
[1730665619131,3.08,160.96,160.92,3.1082]
[1730665619335,3.1074,160.96,160.92,11.93255563]
[1730665619946,3.1074,160.96,160.93,3.1078]
[1730665621440,3.1074,160.96,160.95,7.6368106]
[1730665631948,7.6368106,160.97,160.91,10.7452106]
[1730665633150,3.1079,160.94,160.91,10.7452106]
[1730665635662,3.1079,160.94,160.92,3.1081]
[1730665644070,3.08,160.97,160.93,7.6368106]
[1730665644369,1.4212,160.99,160.95,7.6368106]
[1730665645163,3.1073,160.97,160.95,7.6368106]
[1730665646765,63.96343842,160.99,160.96,10.7442106]
[1730665647864,3.107,160.98,160.96,10.7442106]
[1730665648970,3.107,160.98,160.96,7.6368106]
[1730665654772,3.08,161.01,160.96,7.6368106]
[1730665654973,9.0569106,161.02,160.99,7.6368106]
[1730665654974,1.4201,161.02,160.99,7.6368106]
[1730665655286,4.5001,161.02,160.99,7.6368106]
[1730665655871,1.4201,161.02,160.99,7.6368106]
[1730665656281,1.4201,161.02,160.97,7.6368106]
[1730665656874,3.1068,161.0,160.97,10.7439106]
[1730665662488,3.107,160.98,160.97,7.6368106]
[1730665662686,1.4201,161.02,160.97,7.6368106]
[1730665662889,9.0569106,161.02,160.95,7.6368106]
[1730665665192,7.6368106,161.0,160.93,10.7447106]
[1730665665386,3.08,160.99,160.93,10.7447106]
[1730665666394,3.1075,160.96,160.93,10.7447106]
[1730665668199,3.1075,160.96,160.94,3.1078]
[1730665670202,3.08,160.99,160.95,10.7443106]
[1730665670396,4.5001,161.02,160.97,7.6368106]
[1730665670707,63.92356449,161.03,161.0,7.6368106]
[1730665671003,3.1062,161.02,161.0,7.6368106]
[1730665671207,63.92356449,161.03,161.0,7.6368106]
[1730665672399,3.1064,161.01,161.0,7.6368106]
[1730665676909,3.1064,161.01,160.99,7.6368106]
[1730665687718,3.1064,161.01,160.98,10.7437106]
[1730665692527,3.1067,161.0,160.97,3.1072]
[1730665692830,7.6368106,161.02,160.96,7.6368106]
[1730665693530,7.6368106,161.02,160.96,10.7441106]
[1730665694930,3.1068,161.0,160.98,7.6368106]
[1730665699420,62.15956449,161.03,160.98,7.6368106]
[1730665699626,3.1063,161.02,160.99,10.7436106]
[1730665702519,60.84356449,161.03,160.99,7.6368106]
[1730665702722,63.94966449,161.03,161.0,3.1066]
[1730665704431,3.08,161.04,161.02,10.7429106]
[1730665704636,3.08,161.07,161.02,3.1061]
[1730665704827,7.6368106,161.05,160.98,7.6368106]
[1730665705431,3.1064,161.02,160.98,10.7437106]
[1730665706421,7.6368106,161.03,160.97,7.6368106]
[1730665706633,7.6368106,161.03,160.95,1.365]
[1730665706634,7.6368106,161.0,160.95,7.6368106]
[1730665706838,7.6368106,161.0,160.94,7.6368106]
[1730665707338,7.6368106,161.0,160.95,3.1075]
[1730665707731,3.1069,160.99,160.96,3.1074]
[1730665708335,3.1069,160.99,160.96,10.7442106]
[1730665709534,8.9917106,161.02,160.96,7.6368106]
[1730665709832,3.1065,161.01,160.98,10.7438106]
[1730665711130,3.1065,161.01,160.98,3.107]
[1730665711334,3.1065,161.01,160.97,3.1072]
[1730665714729,3.1067,161.0,160.97,3.1072]
[1730665716230,8.9917106,161.02,160.93,3.08]
[1730665716231,3.08,161.03,160.98,10.7438106]
[1730665716542,3.08,161.03,160.99,7.6368106]
[1730665716942,6.1862,161.03,161.0,3.1066]
[1730665717635,21.3302,161.08,160.94,4.0521]
[1730665717636,3.1059,161.04,161.01,10.7432106]
[1730665718632,3.1059,161.04,161.02,7.6368106]
[1730665718838,60.83172916,161.06,161.02,7.6368106]
[1730665719032,3.06,161.08,161.05,7.6368106]
[1730665719237,3.1052,161.08,161.05,7.6368106]
[1730665719735,3.06,161.1,161.05,7.6368106]
[1730665719930,3.105,161.09,161.07,7.6368106]
[1730665721750,6.1648,161.1,161.07,7.6368106]
[1730665722138,3.06,161.1,161.07,10.7420106]
[1730665722442,21.3542,161.15,161.08,7.6368106]
[1730665722443,7.6368106,161.14,161.08,7.6368106]
[1730665722647,1.08097912,161.13,161.1,7.6368106]
[1730665722837,3.06,161.14,161.1,7.6368106]
[1730665723741,3.1045,161.12,161.1,7.6368106]
[1730665723940,10.6968106,161.14,161.08,7.6368106]
[1730665725239,3.1048,161.1,161.08,7.6368106]
[1730665727852,7.6368106,161.12,161.06,7.6368106]
[1730665728250,3.105,161.09,161.06,7.6368106]
[1730665728851,3.105,161.09,161.06,10.7422106]
[1730665729239,3.105,161.09,161.08,7.6368106]
[1730665734955,7.6368106,161.17,161.08,7.6368106]
[1730665735259,3.1043,161.13,161.11,7.6368106]
[1730665736159,26.2968106,161.15,161.09,7.6368106]
[1730665736465,7.6368106,161.14,161.08,7.6368106]
[1730665736652,3.1048,161.1,161.08,7.6368106]
[1730665737858,7.6368106,161.12,161.06,7.6368106]
[1730665738159,7.6368106,161.11,161.05,7.6368106]
[1730665738358,29.0011106,161.12,161.06,7.6368106]
[1730665738559,3.1052,161.08,161.06,7.6368106]
[1730665740767,3.1053,161.07,161.05,7.6368106]
[1730665740950,27.6889106,161.11,161.05,7.6368106]
[1730665741153,3.1058,161.05,161.03,7.6368106]
[1730665741761,3.1059,161.04,161.03,7.6368106]
[1730665741968,3.1059,161.04,161.02,7.6368106]
[1730665742270,10.6968106,161.08,161.02,7.6368106]
[1730665743156,3.106,161.04,161.02,7.6368106]
[1730665743758,10.6968106,161.08,161.03,7.6368106]
[1730665743759,3.1057,161.05,161.03,7.6368106]
[1730665744662,3.1055,161.06,161.03,7.6368106]
[1730665744858,3.1055,161.06,161.05,7.6368106]
[1730665745265,3.06,161.08,161.03,7.6368106]
[1730665746261,3.1056,161.06,161.03,7.6368106]
[1730665750771,3.1056,161.06,161.03,10.7428106]
[1730665752569,3.1054,161.07,161.03,7.6368106]
[1730665752772,7.6368106,161.07,161.01,7.6368106]
[1730665753364,3.1058,161.05,161.01,10.7431106]
[1730665755071,3.06,161.08,161.03,7.6368106]
[1730665755268,3.06,161.08,161.04,7.6368106]
[1730665755971,3.1054,161.07,161.03,10.7427106]
[1730665759985,3.1059,161.04,161.01,10.7432106]
[1730665764583,3.06,161.08,161.03,7.6368106]
[1730665765083,3.1056,161.06,161.03,10.7428106]
[1730665766683,3.1057,161.05,161.03,10.7428106]
[1730665768578,3.1057,161.05,161.03,7.6368106]
[1730665772286,3.06,161.08,161.01,7.6368106]
[1730665772287,3.1061,161.03,161.01,7.6368106]
[1730665772880,3.1056,161.06,161.01,10.7431106]
[1730665773186,63.88608814,161.08,161.01,7.6368106]
[1730665773390,3.1061,161.03,161.01,10.7432106]
[1730665773590,82.54608814,161.08,161.01,7.6368106]
[1730665773793,7.6368106,161.07,161.01,7.6368106]
[1730665774090,26.2968106,161.06,160.98,7.6368106]
[1730665774391,1.4095,161.05,160.98,7.6368106]
[1730665774692,10.6968106,161.04,160.98,10.7437106]
[1730665775680,3.1065,161.01,160.98,10.7437106]
[1730665777495,3.1065,161.01,160.99,7.6368106]
[1730665778181,3.06,161.04,160.99,7.6368106]
[1730665778182,3.1061,161.03,161.0,3.1065]
[1730665778388,3.1061,161.03,161.01,7.6368106]
[1730665779887,6.166,161.04,161.01,10.7432106]
[1730665782091,3.06,161.04,161.01,10.7432106]
[1730665783286,3.06,161.04,161.01,7.6368106]
[1730665783491,3.06,161.04,161.0,7.6368106]
[1730665785097,3.1061,161.03,161.0,7.6368106]
[1730665785998,3.1063,161.02,161.0,7.6368106]
[1730665788998,3.1063,161.02,160.99,3.1068]
[1730665789702,7.6368106,161.03,160.97,7.6368106]
[1730665790095,8.9254106,161.03,160.97,7.6368106]
[1730665790299,3.1067,161.0,160.97,10.7440106]
[1730665791503,69.84022438,161.06,160.98,7.6368106]
[1730665791705,3.06,161.04,160.99,7.6368106]
[1730665792103,3.1062,161.02,160.99,10.7434106]
[1730665793304,3.1062,161.02,161.0,3.1066]
[1730665794100,3.1061,161.03,161.0,3.1066]
[1730665795597,65.26341378,161.06,161.01,10.7431106]
[1730665796514,65.26341378,161.06,161.02,3.1061]
[1730665797407,63.89201378,161.06,161.02,3.1061]
[1730665797715,63.89201378,161.06,161.02,10.7429106]
[1730665798408,3.1057,161.05,161.02,10.7429106]
[1730665800308,3.1057,161.05,161.02,7.6368106]
[1730665800507,3.1057,161.05,161.01,10.7432106]
[1730665803210,3.1063,161.02,160.99,10.7435106]
[1730665804013,3.1061,161.03,160.99,10.7435106]
[1730665805618,3.106,161.04,161.02,7.6368106]
[1730665805824,60.83201378,161.06,161.03,7.6368106]
[1730665806018,60.83201378,161.06,161.05,7.6368106]
[1730665807515,60.83201378,161.06,161.03,7.6368106]
[1730665808309,63.93751378,161.06,161.03,10.7427106]
[1730665811113,3.1055,161.06,161.03,10.7427106]
[1730665826533,10.6968106,161.09,161.03,7.6368106]
[1730665826840,3.1058,161.05,161.03,7.6368106]
[1730665827030,10.6968106,161.09,161.03,7.6368106]
[1730665827031,3.06,161.09,161.03,7.6368106]
[1730665827342,60.81510849,161.1,161.06,7.6368106]
[1730665828035,10.3576106,161.14,161.08,7.6368106]
[1730665828238,5.7808,161.14,161.09,7.6368106]
[1730665828434,66.58132465,161.14,161.09,7.6368106]
[1730665828626,7.6368106,161.11,161.04,8.9979106]
[1730665828826,7.6368106,161.09,161.03,7.6368106]
[1730665829131,3.1054,161.07,161.03,10.7428106]
[1730665829732,3.1058,161.05,161.03,7.6368106]
[1730665829936,7.6368106,161.09,161.03,7.6368106]
[1730665830740,7.6368106,161.09,161.03,10.7428106]
[1730665832229,3.1054,161.07,161.03,10.7428106]
[1730665833230,7.6368106,161.06,161.01,3.1063]
[1730665833533,7.6368106,161.05,160.98,7.6368106]
[1730665834041,3.1064,161.02,160.98,10.7437106]
[1730665834536,3.1061,161.03,160.98,10.7437106]
[1730665834740,7.6368106,161.05,160.98,10.7437106]
[1730665835141,3.1064,161.02,160.98,10.7437106]
[1730665836543,3.1067,161.0,160.98,7.6368106]
[1730665836733,3.1067,161.0,160.94,2.7546]
[1730665836734,10.6768106,161.02,160.95,7.6368106]
[1730665837240,3.107,160.98,160.95,10.7443106]
[1730665837837,3.1069,160.99,160.95,10.7443106]
[1730665838251,10.6768106,161.02,160.95,7.6368106]
[1730665838545,7.6368106,161.0,160.94,10.7446106]
[1730665838947,7.6368106,161.0,160.94,7.6368106]
[1730665839648,3.1073,160.97,160.94,7.6368106]
[1730665839836,7.6368106,161.0,160.94,7.6368106]
[1730665840143,5.7635,161.01,160.97,7.6368106]
[1730665840345,2.6569,161.01,160.97,7.6368106]
[1730665840932,3.1068,161.0,160.97,7.6368106]
[1730665843739,3.1072,160.97,160.94,7.6368106]
[1730665843942,5.6969,161.01,160.96,7.6368106]
[1730665844648,3.1068,161.0,160.96,10.7441106]
[1730665845534,3.1068,161.0,160.97,7.6368106]
[1730665849643,3.04,161.01,160.97,7.6368106]
[1730665849846,3.107,160.99,160.96,7.6368106]
[1730665850855,3.107,160.99,160.96,10.7441106]
[1730665856560,3.107,160.99,160.98,7.6368106]
[1730665856753,3.04,161.01,160.98,7.6368106]
[1730665856960,6.1465,161.01,160.98,10.7438106]
[1730665859764,3.04,161.01,160.98,7.6368106]
[1730665860061,3.1066,161.0,160.98,7.6368106]
[1730665860263,3.04,161.01,160.98,7.6368106]
[1730665860655,6.1466,161.01,160.98,10.7438106]
[1730665862056,63.94916689,161.04,161.0,3.1065]
[1730665862357,3.04,161.03,161.01,7.6368106]
[1730665863669,6.1462,161.03,161.01,7.6368106]
[1730665864956,3.1062,161.03,161.01,7.6368106]